bitfinex-derivatives/quotes_BNBF0:USTF0_20250221
["timestamp","ask_amount","ask_price","bid_price","bid_amount"]
[1740127597272,3.12160758,656.18,655.18,0.30525962]
[1740127597471,5.41179813,656.17,655.18,0.30525962]
[1740127597773,3.12160758,656.16,655.18,0.30525962]
[1740127597971,3.12160758,656.15,655.18,0.30525962]
[1740127598171,3.12160758,656.14,655.18,0.30525962]
[1740127598371,3.12160758,656.13,655.18,0.30525962]
[1740127598572,3.12160758,656.12,655.18,0.30525962]
[1740127598773,3.12160758,656.11,655.18,0.30525962]
[1740127598974,3.12160758,656.1,655.18,0.30525962]
[1740127599174,3.12160758,656.09,655.18,0.30525962]
[1740127599369,2.29019055,656.09,655.18,0.30525962]
[1740127600474,2.29019055,656.08,655.18,0.30525962]
[1740127601574,3.1202534,656.07,655.18,0.30525962]
[1740127601776,3.1202534,656.06,655.18,0.30525962]
[1740127601974,3.1202534,656.05,655.18,0.30525962]
[1740127602176,5.41044395,656.04,655.18,0.30525962]
[1740127602474,2.29019055,656.04,655.18,0.30525962]
[1740127603977,1.59249514,656.13,655.18,0.30525962]
[1740127604372,2.28826626,656.12,655.18,0.30525962]
[1740127605175,3.11940488,656.11,655.18,0.30525962]
[1740127605476,3.11940488,656.1,655.18,0.30525962]
[1740127605671,3.11940488,656.09,655.18,0.30525962]
[1740127605875,3.11940488,656.08,655.18,0.30525962]
[1740127606176,3.11940488,656.07,655.18,0.30525962]
[1740127606377,3.11940488,656.06,655.18,0.30525962]
[1740127606576,3.11940488,656.05,655.18,0.30525962]
[1740127606778,3.11940488,656.04,655.18,0.30525962]
[1740127606977,3.11940488,656.03,655.18,0.30525962]
[1740127607171,3.11940488,656.02,655.18,0.30525962]
[1740127607372,3.11940488,656.01,655.18,0.30525962]
[1740127607574,3.11940488,656.0,655.18,0.30525962]
[1740127607777,3.11940488,655.99,655.18,0.30525962]
[1740127607979,3.11940488,655.98,655.18,0.30525962]
[1740127608173,3.11940488,655.97,655.18,0.30525962]
[1740127608378,2.28826626,656.0,655.18,0.30525962]
[1740127608578,3.11890699,655.99,655.18,0.30525962]
[1740127608779,2.28826626,656.0,655.18,0.30525962]
[1740127609275,2.28826626,655.99,655.18,0.30525962]
[1740127611083,2.28826626,655.98,655.18,0.30525962]
[1740127612884,1.872,656.09,655.18,0.30525962]
[1740127617083,1.59224012,656.08,655.18,0.30525962]
[1740127624190,2.28924408,656.07,655.18,0.30525962]
[1740127626394,2.28924408,656.06,655.18,0.30525962]
[1740127627695,1.59224012,656.08,655.18,0.30525962]
[1740127644313,2.29272038,656.07,655.18,0.30525962]
[1740127646217,1.59224012,656.08,655.18,0.30525962]
[1740127646511,1.872,656.09,655.18,0.30525962]
[1740127655823,1.14110887,657.25,655.18,0.30525962]
[1740127656021,0.30430747,657.23,655.18,0.30525962]
[1740127658822,1.59143915,657.22,655.18,0.30525962]
[1740127659328,0.30432136,657.2,655.18,0.30525962]
[1740127660728,2.29187192,657.19,655.18,0.30525962]
[1740127660928,0.30433525,657.17,655.18,0.30525962]
[1740127661128,3.11826823,657.16,655.18,0.30525962]
[1740127661330,0.30434914,657.14,655.18,0.30525962]
[1740127661523,3.11826823,657.13,655.18,0.30525962]
[1740127661723,0.30436304,657.11,655.18,0.30525962]
[1740127662025,3.39805945,657.1,655.18,0.30525962]
[1740127662330,5.68993137,657.09,655.18,0.30525962]
[1740127662522,0.30438157,657.07,655.18,0.30525962]
[1740127662726,3.11826823,657.06,655.18,0.30525962]
[1740127663030,0.30439547,657.04,655.18,0.30525962]
[1740127663224,3.11826823,657.03,655.18,0.30525962]
[1740127663530,0.30440936,657.01,655.18,0.30525962]
[1740127663829,3.11826823,657.0,655.18,0.30525962]
[1740127664130,0.30442327,656.98,655.18,0.30525962]
[1740127664329,5.41014015,656.97,655.18,0.30525962]
[1740127664528,3.11826823,656.96,655.18,0.30525962]
[1740127664730,1.14110887,656.88,655.18,0.30525962]
[1740127664930,3.42274247,656.87,655.18,0.30525962]
[1740127665127,3.42274711,656.86,655.18,0.30525962]
[1740127665325,3.42275174,656.85,655.18,0.30525962]
[1740127665526,3.42275638,656.84,655.18,0.30525962]
[1740127665728,3.42276102,656.83,655.18,0.30525962]
[1740127665925,3.42276565,656.82,655.18,0.30525962]
[1740127666129,5.41014015,656.81,655.18,0.30525962]
[1740127666330,3.11826823,656.8,655.18,0.30525962]
[1740127666531,2.29187192,656.81,655.18,0.30525962]
[1740127666532,3.11826823,656.79,655.18,0.30525962]
[1740127666732,3.11826823,656.78,655.18,0.30525962]
[1740127666925,3.11826823,656.77,655.18,0.30525962]
[1740127667232,3.42279347,656.76,655.18,0.30525962]
[1740127667433,3.11826823,656.75,655.18,0.30525962]
[1740127667732,3.11826823,656.74,655.18,0.30525962]
[1740127667931,3.11826823,656.73,655.18,0.30525962]
[1740127668231,3.11826823,656.72,655.18,0.30525962]
[1740127668434,3.11826823,656.71,655.18,0.30525962]
[1740127668631,3.11826823,656.7,655.18,0.30525962]
[1740127668829,3.11826823,656.69,655.18,0.30525962]
[1740127669032,3.11826823,656.68,655.18,0.30525962]
[1740127669333,5.41014015,656.67,655.18,0.30525962]
[1740127669530,3.11826823,656.66,655.18,0.30525962]
[1740127669727,3.11826823,656.65,655.18,0.30525962]
[1740127669930,3.11826823,656.64,655.18,0.30525962]
[1740127670127,3.11826823,656.63,655.18,0.30525962]
[1740127670330,3.11826823,656.62,655.18,0.30525962]
[1740127670531,3.11826823,656.61,655.18,0.30525962]
[1740127670832,3.11826823,656.6,655.18,0.30525962]
[1740127671025,3.11826823,656.59,655.18,0.30525962]
[1740127671228,3.11826823,656.58,655.18,0.30525962]
[1740127671533,3.11826823,656.57,655.18,0.30525962]
[1740127671837,3.11826823,656.56,655.18,0.30525962]
[1740127672033,3.11826823,656.55,655.18,0.30525962]
[1740127672234,3.11826823,656.54,655.18,0.30525962]
[1740127672534,3.11826823,656.53,655.18,0.30525962]
[1740127672833,3.11826823,656.52,655.18,0.30525962]
[1740127673034,3.11826823,656.51,655.18,0.30525962]
[1740127673231,2.29187192,656.56,655.18,0.30525962]
[1740127673429,3.11757549,656.55,655.18,0.30525962]
[1740127673637,3.11757549,656.54,655.18,0.30525962]
[1740127673837,3.11757549,656.53,655.18,0.30525962]
[1740127674034,2.29187192,656.55,655.18,0.30525962]
[1740127675039,2.29187192,656.54,655.18,0.30525962]
[1740127676540,2.29187192,656.53,655.18,0.30525962]
[1740127678241,2.29187192,656.52,655.18,0.30525962]
[1740127679943,2.29187192,656.51,655.18,0.30525962]
[1740127681043,1.59161505,656.5,655.18,0.30525962]
[1740127690946,2.28721164,656.49,655.18,0.30525962]
[1740127693251,2.28721164,656.48,655.18,0.30525962]
[1740127694856,2.28721164,656.47,655.18,0.30525962]
[1740127696453,1.797,656.46,655.18,0.30525962]
[1740127696652,4.08421164,656.46,655.18,0.30525962]
[1740127698854,1.797,656.46,655.18,0.30525962]
[1740127703055,1.797,656.46,655.26,1.13089605]
[1740127703257,1.797,656.46,655.28,0.30521303]
[1740127705162,2.29033905,656.45,655.28,0.30521303]
[1740127705764,1.797,656.46,655.28,0.30521303]
[1740127707764,1.797,656.46,655.33,1.13089605]
[1740127707965,1.797,656.46,655.35,0.30518043]
[1740127710469,1.59161505,656.5,655.35,0.30518043]
[1740127718775,2.28623517,656.49,655.35,0.30518043]
[1740127719768,1.88,656.48,655.35,0.30518043]
[1740127719973,2.28623517,656.47,655.35,0.30518043]
[1740127721674,1.59161505,656.5,655.35,0.30518043]
[1740127730082,2.28743421,656.49,655.35,0.30518043]
[1740127730276,3.11900197,656.48,655.35,0.30518043]
[1740127730479,2.28743421,656.49,655.35,0.30518043]
[1740127730677,3.11930176,656.48,655.35,0.30518043]
[1740127730879,2.28743421,656.49,655.35,0.30518043]
[1740127731076,3.1193016,656.48,655.35,0.30518043]
[1740127731280,3.1193016,656.47,655.35,0.30518043]
[1740127731476,2.28743421,656.47,655.35,0.30518043]
[1740127732381,3.11961151,656.46,655.35,0.30518043]
[1740127732578,2.28743421,656.47,655.35,0.30518043]
[1740127732775,2.28743421,656.46,655.35,0.30518043]
[1740127734884,2.28743421,656.45,655.35,0.30518043]
[1740127736082,1.59161505,656.5,655.35,0.30518043]
[1740127736083,2.28743421,656.44,655.35,0.30518043]
[1740127736779,1.59171212,656.43,655.35,0.30518043]
[1740127750786,2.28783665,656.42,655.35,0.30518043]
[1740127751388,3.11919789,656.41,655.35,0.30518043]
[1740127751589,2.28783665,656.42,655.35,0.30518043]
[1740127751790,3.11880409,656.41,655.35,0.30518043]
[1740127752091,3.11880409,656.4,655.35,0.30518043]
[1740127752293,3.11880409,656.39,655.35,0.30518043]
[1740127752498,2.28783665,656.4,655.35,0.30518043]
[1740127753892,2.28783665,656.39,655.35,0.30518043]
[1740127754590,3.11767987,656.38,655.35,0.30518043]
[1740127754796,3.11767987,656.37,655.35,0.30518043]
[1740127754991,3.11757377,656.36,655.35,0.30518043]
[1740127755198,2.28783665,656.36,655.35,0.30518043]
[1740127755792,3.11726502,656.35,655.35,0.30518043]
[1740127755992,2.28783665,656.36,655.35,0.30518043]
[1740127756195,5.40510605,656.35,655.35,0.30518043]
[1740127756394,2.28783665,656.35,655.35,0.30518043]
[1740127757794,3.11659017,656.34,655.35,0.30518043]
[1740127757995,2.28783665,656.35,655.35,0.30518043]
[1740127758394,2.28783665,656.34,655.35,0.30518043]
[1740127759295,1.59187594,656.33,655.35,0.30518043]
[1740127759497,2.28783665,656.32,655.35,0.30518043]
[1740127761499,1.59187594,656.33,655.35,0.30518043]
[1740127767308,2.28522201,656.32,655.35,0.30518043]
[1740127768209,3.11594696,656.31,655.35,0.30518043]
[1740127768404,3.11594696,656.3,655.35,0.30518043]
[1740127768610,3.11594696,656.29,655.35,0.30518043]
[1740127768806,3.11594696,656.28,655.35,0.30518043]
[1740127769109,3.11594696,656.27,655.35,0.30518043]
[1740127769306,3.11594696,656.26,655.35,0.30518043]
[1740127769504,3.11594696,656.25,655.35,0.30518043]
[1740127769709,2.28522201,656.27,655.35,0.30518043]
[1740127769710,3.11594696,656.24,655.35,0.30518043]
[1740127769910,1.59218548,656.25,655.35,0.30518043]
[1740127770111,3.11615628,656.24,655.35,0.30518043]
[1740127770411,3.11615628,656.23,655.35,0.30518043]
[1740127770611,3.11615628,656.22,655.35,0.30518043]
[1740127770812,3.11632506,656.21,655.35,0.30518043]
[1740127771111,3.11632506,656.2,655.35,0.30518043]
[1740127771313,3.11632506,656.19,655.35,0.30518043]
[1740127771611,3.11632506,656.18,655.35,0.30518043]
[1740127771810,3.11632506,656.17,655.35,0.30518043]
[1740127772005,3.11632506,656.16,655.35,0.30518043]
[1740127772212,3.11632506,656.15,655.35,0.30518043]
[1740127772411,3.11632506,656.14,655.35,0.30518043]
[1740127772611,5.40154707,656.13,655.35,0.30518043]
[1740127772807,3.11632506,656.12,655.35,0.30518043]
[1740127773010,3.11632506,656.11,655.35,0.30518043]
[1740127773210,3.11632506,656.1,655.35,0.30518043]
[1740127773406,2.28522201,656.13,655.35,0.30518043]
[1740127773810,2.28522201,656.12,655.35,0.30518043]
[1740127776014,2.28522201,656.11,655.35,0.30518043]
[1740127777715,1.59218548,656.25,655.35,0.30518043]
[1740127778510,2.28592225,656.24,655.35,0.30518043]
[1740127780317,2.28592225,656.23,655.35,0.30518043]
[1740127781817,1.59218548,656.25,655.35,0.30518043]
[1740127782218,2.28627028,656.24,655.35,0.30518043]
[1740127783317,1.59218548,656.25,655.35,0.30518043]
[1740127784516,2.28629823,656.24,655.35,0.30518043]
[1740127786221,2.28629823,656.23,655.35,0.30518043]
[1740127787225,1.534,656.22,655.35,0.30518043]
[1740127787526,5.40309108,656.21,655.35,0.30518043]
[1740127787833,3.11679285,656.2,655.35,0.30518043]
[1740127788126,2.28629823,656.21,655.35,0.30518043]
[1740127788729,3.11700056,656.2,655.35,0.30518043]
[1740127788928,2.28629823,656.21,655.35,0.30518043]
[1740127788929,3.11700056,656.19,655.35,0.30518043]
[1740127789128,3.11700056,656.18,655.35,0.30518043]
[1740127789329,3.11700056,656.17,655.35,0.30518043]
[1740127789524,3.11700056,656.16,655.35,0.30518043]
[1740127789829,3.11700056,656.15,655.35,0.30518043]
[1740127790030,3.11700056,656.14,655.35,0.30518043]
[1740127790222,3.11700056,656.13,655.35,0.30518043]
[1740127790426,3.11700056,656.12,655.35,0.30518043]
[1740127790628,3.11700056,656.11,655.35,0.30518043]
[1740127790830,5.40329879,656.1,655.35,0.30518043]
[1740127791123,3.11700056,656.09,655.35,0.30518043]
[1740127791431,3.11700056,656.08,655.35,0.30518043]
[1740127791728,3.11700056,656.07,655.35,0.30518043]
[1740127792029,3.11700056,656.06,655.35,0.30518043]
[1740127792229,3.11700056,656.05,655.35,0.30518043]
[1740127792525,2.28629823,656.06,655.35,0.30518043]
[1740127794726,2.28629823,656.05,655.35,0.30518043]
[1740127795432,2.28629823,656.05,654.66,1.13089605]
[1740127795631,2.28629823,656.05,654.68,0.30549275]
[1740127795832,2.28629823,656.04,654.68,0.30549275]
[1740127797230,1.59242834,656.17,654.68,0.30549275]
[1740127799938,3.11684841,656.16,654.68,0.30549275]
[1740127800134,2.28626975,656.16,654.68,0.30549275]
[1740127800531,3.11698807,656.15,654.68,0.30549275]
[1740127800830,3.11698807,656.14,654.68,0.30549275]
[1740127801029,3.11698807,656.13,654.68,0.30549275]
[1740127801230,3.11698807,656.12,654.68,0.30549275]
[1740127801435,3.11698807,656.11,654.68,0.30549275]
[1740127801736,3.11698807,656.1,654.68,0.30549275]
[1740127802037,3.11698807,656.09,654.68,0.30549275]
[1740127802331,3.87926302,656.1,654.68,0.30549275]
[1740127802535,3.11556647,656.09,654.68,0.30549275]
[1740127802730,3.11556647,656.08,654.68,0.30549275]
[1740127802930,3.11556946,656.09,654.68,0.30549275]
[1740127803235,3.11453576,656.08,654.68,0.30549275]
[1740127803435,3.11453576,656.09,654.68,0.30549275]
[1740127803736,3.87926302,656.1,654.68,0.30549275]
[1740127804341,2.28626975,656.09,654.68,0.30549275]
[1740127806536,2.28626975,656.08,654.68,0.30549275]
[1740127808437,1.59299327,656.1,654.68,0.30549275]
[1740127810737,2.28626975,656.09,654.68,0.30549275]
[1740127811935,1.59299327,656.1,654.68,0.30549275]
[1740127812636,3.11107281,656.09,654.68,0.30549275]
[1740127812841,3.11107281,656.08,654.68,0.30549275]
[1740127813041,3.11107281,656.07,654.68,0.30549275]
[1740127813335,3.41592297,656.06,654.68,0.30549275]
[1740127813537,3.41592762,656.05,654.68,0.30549275]
[1740127813737,3.41593226,656.04,654.68,0.30549275]
[1740127813937,3.41593691,656.03,654.68,0.30549275]
[1740127814139,3.41594156,656.02,654.68,0.30549275]
[1740127814337,3.11107281,656.01,654.68,0.30549275]
[1740127814536,3.41595085,656.0,654.68,0.30549275]
[1740127814744,3.4159555,655.99,654.68,0.30549275]
[1740127814941,3.41596015,655.98,654.68,0.30549275]
[1740127815141,3.4159648,655.97,654.68,0.30549275]
[1740127815343,3.11107281,655.96,654.68,0.30549275]
[1740127815541,3.11107281,655.95,654.68,0.30549275]
[1740127815738,3.11107281,655.94,654.68,0.30549275]
[1740127815943,3.11107281,655.93,654.68,0.30549275]
[1740127816143,3.11107281,655.92,654.68,0.30549275]
[1740127816336,0.30489199,655.97,654.68,0.30549275]
[1740127816537,2.28626975,655.91,654.68,0.30549275]
[1740127817245,0.30492453,655.9,654.68,0.30549275]
[1740127817741,2.28626975,655.89,654.68,0.30549275]
[1740127817945,2.59119893,655.89,654.68,0.30549275]
[1740127819641,1.59358293,655.88,654.68,0.30549275]
[1740127820045,3.87985268,655.88,654.68,0.30549275]
[1740127820246,1.624,655.87,654.68,0.30549275]
[1740127821245,0.30494312,655.86,654.68,0.30549275]
[1740127821647,3.10141568,655.85,654.68,0.30549275]
[1740127821850,3.4063681,655.84,654.68,0.30549275]
[1740127822049,3.40637275,655.83,654.68,0.30549275]
[1740127822250,3.10141568,655.82,654.68,0.30549275]
[1740127822452,3.10141568,655.81,654.68,0.30549275]
[1740127822753,3.10141568,655.8,654.68,0.30549275]
[1740127822947,0.30497102,655.8,654.68,0.30549275]
[1740127823550,2.28626975,655.79,654.68,0.30549275]
[1740127824751,2.28626975,655.78,654.68,0.30549275]
[1740127826555,2.28626975,655.79,654.68,0.30549275]
[1740127828753,0.30497102,655.8,654.68,0.30549275]
[1740127829951,1.59388705,655.79,654.68,0.30549275]
[1740127834154,3.09664972,655.78,654.68,0.30549275]
[1740127834362,2.28626975,655.78,654.68,0.30549275]
[1740127834554,5.38151747,655.78,654.68,0.30549275]
[1740127834754,2.28626975,655.78,654.68,0.30549275]
[1740127834958,5.3814806,655.78,654.68,0.30549275]
[1740127835360,1.827,655.77,654.68,0.30549275]
[1740127836057,2.28626975,655.76,654.68,0.30549275]
[1740127837961,2.28626975,655.75,654.68,0.30549275]
[1740127839960,2.28626975,655.74,654.68,0.30549275]
[1740127841267,2.28626975,655.73,654.68,0.30549275]
[1740127841863,1.59391138,655.72,654.68,0.30549275]
[1740127843269,2.28626975,655.71,654.68,0.30549275]
[1740127844867,2.28626975,655.7,654.68,0.30549275]
[1740127847267,5.38470029,655.69,654.68,0.30549275]
[1740127847464,2.28626975,655.69,654.68,0.30549275]
[1740127849664,1.59391138,655.72,654.68,0.30549275]
[1740127851169,2.27488581,655.71,654.68,0.30549275]
[1740127852769,2.27488581,655.7,654.68,0.30549275]
[1740127854271,1.59391138,655.72,654.68,0.30549275]
[1740127854771,2.27835852,655.71,654.68,0.30549275]
[1740127855973,2.27835852,655.7,654.68,0.30549275]
[1740127857874,2.27835852,655.69,654.68,0.30549275]
[1740127859175,2.27835852,655.68,654.68,0.30549275]
[1740127860693,2.27835852,655.67,654.68,0.30549275]
[1740127861577,3.11297321,655.66,654.68,0.30549275]
[1740127861777,3.11297321,655.65,654.68,0.30549275]
[1740127861974,2.27835852,655.67,654.68,0.30549275]
[1740127861975,3.11297321,655.64,654.68,0.30549275]
[1740127862171,3.11297321,655.63,654.68,0.30549275]
[1740127862479,2.27835852,655.63,654.68,0.30549275]
[1740127864269,2.27835852,655.62,654.68,0.30549275]
[1740127865777,2.27835852,655.61,654.68,0.30549275]
[1740127866285,3.11530069,655.6,654.68,0.30549275]
[1740127866476,3.11530069,655.59,654.68,0.30549275]
[1740127866678,3.11530069,655.58,654.68,0.30549275]
[1740127866881,3.11530069,655.57,654.68,0.30549275]
[1740127867178,2.27835852,655.61,654.68,0.30549275]
[1740127867384,3.11718872,655.6,654.68,0.30549275]
[1740127867685,3.11718872,655.59,654.68,0.30549275]
[1740127867984,2.27835852,655.59,654.68,0.30549275]
[1740127868185,3.11763121,655.58,654.68,0.30549275]
[1740127868379,3.11763121,655.57,654.68,0.30549275]
[1740127868582,3.11763121,655.56,654.68,0.30549275]
[1740127868780,2.27835852,655.59,654.68,0.30549275]
[1740127868985,3.1187341,655.58,654.68,0.30549275]
[1740127869184,3.1187341,655.57,654.68,0.30549275]
[1740127869487,3.1187341,655.56,654.68,0.30549275]
[1740127869685,3.1187341,655.55,654.68,0.30549275]
[1740127869878,3.1187341,655.54,654.68,0.30549275]
[1740127870079,2.27835852,655.55,654.68,0.30549275]
[1740127870283,3.12120821,655.54,654.68,0.30549275]
[1740127870486,3.12120821,655.53,654.68,0.30549275]
[1740127870686,3.12120821,655.52,654.68,0.30549275]
[1740127870887,1.5937593,655.52,654.68,0.30549275]
[1740127871387,2.27835852,655.51,654.68,0.30549275]
[1740127872891,1.5937593,655.52,654.68,0.30549275]
[1740127874093,2.29270975,655.51,654.68,0.30549275]
[1740127876187,1.5937593,655.52,654.68,0.30549275]
[1740127897001,2.2922803,655.51,654.68,0.30549275]
[1740127897209,3.12443246,655.5,654.68,0.30549275]
[1740127897505,2.2922803,655.51,654.68,0.30549275]
[1740127897704,2.2922803,655.49,654.68,0.30549275]
[1740127899103,1.5937593,655.52,654.68,0.30549275]
[1740127930525,1.309,655.59,654.68,0.30549275]
[1740127972767,1.309,655.59,654.68,1.4363888]
[1740127974567,1.309,655.59,654.68,0.30549275]
[1740127997777,1.59340659,655.58,654.68,0.30549275]
[1740128003786,2.28554552,655.57,654.68,0.30549275]
[1740128005484,1.59340659,655.58,654.68,0.30549275]
[1740128012793,2.28350957,655.57,654.68,0.30549275]
[1740128013698,1.59340659,655.58,654.68,0.30549275]
[1740128054134,1.309,655.59,654.68,0.30549275]
[1740128060442,2.28855464,655.58,654.68,0.30549275]
[1740128061239,2.28855464,655.58,654.72,1.13089605]
[1740128062141,2.28855464,655.58,654.73,0.30546943]
[1740128062443,1.59326677,655.64,654.73,0.30546943]
[1740128070354,2.28855464,656.03,654.73,0.30546943]
[1740128070845,1.14110887,656.52,654.73,0.30546943]
[1740128071051,4.56504071,662.23,654.73,0.30546943]
[1740128071052,1.603,656.02,654.73,0.30546943]
[1740128071954,1.59287782,656.01,654.73,0.30546943]
[1740128077159,2.28643917,656.0,654.73,0.30546943]
[1740128078759,2.28643917,655.99,654.73,0.30546943]
[1740128080057,2.28643917,655.98,654.73,0.30546943]
[1740128081162,2.28643917,655.97,654.73,0.30546943]
[1740128082661,1.59287782,656.01,654.73,0.30546943]
[1740128091566,2.28533197,656.0,654.73,0.30546943]
[1740128092166,1.328,655.99,654.73,0.30546943]
[1740128092765,2.28533197,655.98,654.73,0.30546943]
[1740128094566,2.28533197,655.97,654.73,0.30546943]
[1740128096263,2.28533197,655.96,654.73,0.30546943]
[1740128096866,3.11521659,655.95,654.73,0.30546943]
[1740128097066,2.28533197,655.96,654.73,0.30546943]
[1740128097264,3.11522125,655.95,654.73,0.30546943]
[1740128097464,1.59302973,655.95,654.73,0.30546943]
[1740128097664,2.28533197,655.94,654.73,0.30546943]
[1740128098068,3.1152793,655.93,654.73,0.30546943]
[1740128098369,3.11525176,655.92,654.73,0.30546943]
[1740128098569,2.28533197,655.94,654.73,0.30546943]
[1740128099471,2.28533197,655.93,654.73,0.30546943]
[1740128100873,2.28533197,655.92,654.73,0.30546943]
[1740128102875,2.28533197,655.91,654.73,0.30546943]
[1740128104875,1.59302973,655.95,654.73,0.30546943]
[1740128114076,2.28643043,655.94,654.73,0.30546943]
[1740128114381,3.11948986,655.93,654.73,0.30546943]
[1740128114580,3.11948986,655.92,654.73,0.30546943]
[1740128114880,4.31648986,655.91,654.73,0.30546943]
[1740128115080,3.11948986,655.9,654.73,0.30546943]
[1740128115275,3.11948986,655.89,654.73,0.30546943]
[1740128115479,3.11948986,655.88,654.73,0.30546943]
[1740128115680,3.11948986,655.87,654.73,0.30546943]
[1740128115875,3.11948986,655.86,654.73,0.30546943]
[1740128116179,3.11948986,655.85,654.73,0.30546943]
[1740128116381,3.11948986,655.84,654.73,0.30546943]
[1740128116578,3.11948986,655.83,654.83,1.13089605]
[1740128116779,3.11948986,655.82,654.84,0.30541811]
[1740128116979,2.28643043,655.87,654.84,0.30541811]
[1740128116980,3.11948986,655.81,654.84,0.30541811]
[1740128117176,3.11948986,655.8,654.84,0.30541811]
[1740128117377,2.28643043,655.81,654.84,0.30541811]
[1740128118580,1.197,655.91,654.84,0.30541811]
[1740128124182,1.59288997,655.9,654.84,0.30541811]
[1740128127990,2.28990257,655.89,654.84,0.30541811]
[1740128129585,2.28990257,655.88,654.84,0.30541811]
[1740128131686,2.28990257,655.87,654.84,0.30541811]
[1740128132288,3.12217633,655.86,654.84,0.30541811]
[1740128132483,2.28990257,655.87,654.84,0.30541811]
[1740128133087,1.59288997,655.9,654.84,0.30541811]
[1740128133686,2.29044571,655.89,654.84,0.30541811]
[1740128134785,1.59288997,655.9,654.84,0.30541811]
[1740128135788,2.29042916,655.89,654.84,0.30541811]
[1740128137491,2.29042916,655.88,654.84,0.30541811]
[1740128138890,1.59288997,655.9,654.84,0.30541811]
[1740128139394,3.12224913,655.89,654.84,0.30541811]
[1740128139594,3.12241098,655.88,654.84,0.30541811]
[1740128139794,3.12241098,655.87,654.84,0.30541811]
[1740128139989,3.12241098,655.86,654.84,0.30541811]
[1740128140191,2.29056843,655.87,654.84,0.30541811]
[1740128140392,3.12229434,655.86,654.84,0.30541811]
[1740128140695,3.12229434,655.85,654.84,0.30541811]
[1740128140892,2.29056843,655.87,654.84,0.30541811]
[1740128141090,3.12232429,655.86,654.84,0.30541811]
[1740128141290,2.29056843,655.86,654.84,0.30541811]
[1740128142497,1.59288997,655.9,654.84,0.30541811]
[1740128150101,2.2908876,655.89,654.84,0.30541811]
[1740128151198,2.2908876,655.88,654.84,0.30541811]
[1740128152398,2.2908876,655.87,654.84,0.30541811]
[1740128154004,2.2908876,655.86,654.84,0.30541811]
[1740128155504,3.7318876,655.85,654.84,0.30541811]
[1740128156800,2.2908876,655.84,654.84,0.30541811]
[1740128157598,1.59289605,655.83,654.84,0.30541811]
[1740128161807,1.441,655.85,654.84,0.30541811]
[1740128164412,2.2910953,655.84,654.84,0.30541811]
[1740128166111,1.441,655.85,654.84,0.30541811]
[1740128183616,3.1209813,656.64,654.84,0.30541811]
[1740128183817,3.1209813,656.67,654.84,0.30541811]
[1740128184218,2.2910953,656.68,654.84,0.30541811]
[1740128184721,3.1209813,656.49,654.84,0.30541811]
[1740128185021,3.42563643,656.48,654.84,0.30541811]
[1740128185216,3.42564107,656.47,654.84,0.30541811]
[1740128185414,3.42564571,656.46,654.84,0.30541811]
[1740128185719,3.42565035,656.45,654.84,0.30541811]
[1740128185920,3.42565499,656.44,654.84,0.30541811]
[1740128186220,3.42565963,656.43,654.84,0.30541811]
[1740128186520,3.42566427,656.42,654.84,0.30541811]
[1740128186714,5.71676421,656.41,654.84,0.30541811]
[1740128186914,3.42567356,656.4,654.84,0.30541811]
[1740128187118,3.4256782,656.39,654.84,0.30541811]
[1740128187319,3.1209813,656.38,654.84,0.30541811]
[1740128187624,3.1209813,656.37,654.84,0.30541811]
[1740128187820,0.3046969,656.39,654.84,0.30541811]
[1740128187821,3.1209813,656.36,654.84,0.30541811]
[1740128188022,3.42569677,656.35,654.84,0.30541811]
[1740128188222,3.42570141,656.34,654.84,0.30541811]
[1740128188422,0.30472475,656.33,654.84,0.30541811]
[1740128188618,3.42570605,656.33,654.84,0.30541811]
[1740128188821,3.1209813,656.32,654.84,0.30541811]
[1740128189022,0.30473404,656.31,654.84,0.30541811]
[1740128189923,2.2910953,656.3,654.84,0.30541811]
[1740128190124,0.30474332,656.29,654.84,0.30541811]
[1740128191423,2.2910953,656.28,654.84,0.30541811]
[1740128191718,2.59584327,656.28,654.84,0.30541811]
[1740128193317,5.40869512,656.27,654.84,0.30541811]
[1740128193524,2.2910953,656.27,654.84,0.30541811]
[1740128194821,2.2910953,656.26,654.84,0.30541811]
[1740128197021,2.2910953,656.25,654.84,0.30541811]
[1740128198229,1.59268949,656.24,654.84,0.30541811]
[1740128199032,2.2910953,656.23,654.84,0.30541811]
[1740128199531,3.11869623,656.22,654.84,0.30541811]
[1740128199731,3.11869623,656.21,654.84,0.30541811]
[1740128199931,3.11869623,656.2,654.84,0.30541811]
[1740128200230,3.11869623,656.19,654.84,0.30541811]
[1740128200431,5.40979153,656.18,654.84,0.30541811]
[1740128200626,3.11869623,656.17,654.84,0.30541811]
[1740128200828,3.10610761,656.16,654.84,0.30541811]
[1740128201027,2.2910953,656.18,654.84,0.30541811]
[1740128201725,2.2910953,656.17,654.84,0.30541811]
[1740128202932,2.2910953,656.16,654.84,0.30541811]
[1740128204633,2.2910953,656.15,654.84,0.30541811]
[1740128206127,2.2910953,656.14,654.84,0.30541811]
[1740128208333,2.2910953,656.13,654.84,0.30541811]
[1740128208530,3.88374227,656.13,654.84,0.30541811]
[1740128209533,2.2910953,656.12,654.84,0.30541811]
[1740128211340,1.59264697,656.13,654.84,0.30541811]
[1740128215341,1.459,656.12,654.84,0.30541811]